[Event "EYCC 2017"]
[Site "Mamaia"]
[Date "2017.09.06"]
[Round "2"]
[White "Kucharska, Honorata"]
[Black "Muetsch, Annmarie"]
[Result "0-1"]
[ECO "B24"]
[WhiteElo "1917"]
[BlackElo "2137"]
[Annotator "NA"]
[PlyCount "110"]
[EventDate "2017.??.??"]
[EventType "swiss"]
[EventCountry "ROU"]
[SourceTitle "playchess.com"]
[Source "ChessBase"]
[SourceQuality "1"]
[TimeControl "40/5400+30:1800+30"]

1. e4 {[%emt 0:00:00]} c5 {[%emt 0:00:05]} 2. Nc3 {[%emt 0:00:00]} Nc6 {[%emt 0:00:05]} 3. Bb5 {[%emt 0:00:04]} Nd4 {[%emt 0:00:14]} 4. Bc4 {[%emt 0:00:14]} e6 {[%emt 0:00:22]} 5. Nf3 {[%emt 0:00:15]} Nf6 {[%emt 0:00:28]} 6. O-O {[%emt 0:00:21]} a6 {[%emt 0:00:41]} 7. d3 {[%emt 0:00:51]} b5 {[%emt 0:21:08]} 8. Bb3 {[%emt 0:02:52]} d6 {[%emt 0:04:12]} 9. Nxd4 {[%emt 0:05:44]} cxd4 {[%emt 0:00:06]} 10. Ne2 {[%emt 0:00:26]} e5 {[%emt 0:00:28]} 11. h3 {[%emt 0:04:20]} Be7 {[%emt 0:07:04]} 12. Ng3 {[%emt 0:05:27]} O-O {[%emt 0:04:12]} 13. f4 {[%emt 0:07:21]} Be6 {[%emt 0:16:36]} 14. fxe5 {[%emt 0:11:16]} dxe5 {[%emt 0:00:08]} 15. Nf5 {[%emt 0:00:08]} Bxf5 {[%emt 0:07:32]} 16. Rxf5 {[%emt 0:01:03]} Qd6 {[%emt 0:04:25]} 17. Bg5 {[%emt 0:09:37]} Nd7 {[%emt 0:05:37]} 18. Bxe7 {[%emt 0:05:55]} Qxe7 {[%emt 0:00:05]} 19. Qd2 {[%emt 0:01:37]} g6 {[%emt 0:06:55]} 20. Rf3 {[%emt 0:02:10]} Kg7 {[%emt 0:01:46]} 21. Raf1 {[%emt 0:08:14]} f6 {[%emt 0:00:25]} 22. Rg3 {[%emt 0:03:07]} Nb6 {[%emt 0:04:05]} 23. Rgf3 {[%emt 0:06:45]} Nc8 {[%emt 0:02:58]} 24. R3f2 {[%emt 0:03:13]} Nd6 {[%emt 0:00:45]} 25. g4 {[%emt 0:00:42]} Kh8 {[%emt 0:02:58]} 26. Bd5 {[%emt 0:03:31]} Ra7 {[%emt 0:00:42]} 27. Kh2 {[%emt 0:01:23]} Qd8 {[%emt 0:04:16]} 28. Qe1 {[%emt 0:03:20]} g5 {[%emt 0:01:57]} 29. Kg2 {[%emt 0:01:14]} Kg7 {[%emt 0:01:19]} 30. Re2 {[%emt 0:00:48]} Qd7 {[%emt 0:02:02]} 31. Qg3 {[%emt 0:02:18]} Nc8 {[%emt 0:01:26]} 32. h4 {[%emt 0:01:50]} h6 {[%emt 0:00:50]} 33. Kg1 {[%emt 0:00:35]} Ne7 {[%emt 0:00:28]} 34. hxg5 {[%emt 0:02:11]} hxg5 {[%emt 0:00:04]} 35. Bb3 {[%emt 0:00:41]} Ng6 {[%emt 0:00:22]} 36. Rh2 {[%emt 0:00:27]} Raa8 {[%emt 0:00:46]} 37. Kf2 {[%emt 0:01:09]} Rh8 {[%emt 0:00:33]} 38. Rfh1 {[%emt 0:00:17]} Rh4 {[%emt 0:00:34]} 39. Rxh4 {[%emt 0:00:39]} gxh4 {[%emt 0:00:44]} 40. Qf3 {[%emt 0:00:00]} Rh8 {[%emt 0:00:33]} 41. Ke1 {[%emt 0:07:13]} Nf4 {[%emt 0:05:04]} 42. Kf2 {[%emt 0:03:01]} h3 {[%emt 0:02:02]} 43. Qg3 {[%emt 0:00:23]} Rh6 {[%emt 0:03:21]} 44. Kf3 {[%emt 0:04:33]} a5 {[%emt 0:05:52]} 45. a3 {[%emt 0:05:44]} Qc6 {[%emt 0:01:03]} 46. Rh2 {[%emt 0:02:05]} Rg6 {[%emt 0:01:29]} 47. Bd5 {[%emt 0:02:52]} Qc5 {[%emt 0:03:08]} 48. Bb3 {[%emt 0:01:36]} a4 {[%emt 0:01:48]} 49. Ba2 {[%emt 0:00:09]} f5 {[%emt 0:05:00]} 50. exf5 {[%emt 0:05:43]} Qc6+ {[%emt 0:00:14]} 51. Bd5 {[%emt 0:00:26]} Qxd5+ {[%emt 0:01:45]} 52. Kf2 {[%emt 0:00:05]} Rg5 {[%emt 0:01:45]} 53. Qh4 {[%emt 0:00:38]} Qd8 {[%emt 0:00:08]} 54. Rh1 {[%emt 0:00:54]} Qf6 {[%emt 0:00:37]} 55. Rh2 {[%emt 0:01:56]} Rxf5 {[%emt 0:00:30]} 0-1

[Event "EYCC 2017"]
[Site "Mamaia"]
[Date "2017.09.06"]
[Round "2"]
[White "Celik, Eda"]
[Black "Redondo Benavente, Ana"]
[Result "0-1"]
[ECO "C03"]
[WhiteElo "1916"]
[BlackElo "2087"]
[Annotator "NA"]
[PlyCount "98"]
[EventDate "2017.??.??"]
[EventType "swiss"]
[EventCountry "ROU"]
[SourceTitle "playchess.com"]
[Source "ChessBase"]
[SourceQuality "1"]
[TimeControl "40/5400+30:1800+30"]

1. e4 {[%emt 0:00:00]} e6 {[%emt 0:00:05]} 2. d4 {[%emt 0:00:00]} d5 {[%emt 0:00:07]} 3. Nd2 {[%emt 0:00:00]} Be7 {[%emt 0:00:14]} 4. Ngf3 {[%emt 0:00:20]} Nf6 {[%emt 0:00:19]} 5. Bd3 {[%emt 0:02:56]} c5 $11 {[%emt 0:00:40]} 6. exd5 {[%emt 0:01:09]} Qxd5 {[%emt 0:01:57]} 7. Bc4 {[%emt 0:05:20]} Qd8 {[%emt 0:03:54]} 8. dxc5 {[%emt 0:02:24]} Bxc5 {[%emt 0:03:52]} 9. O-O {[%emt 0:00:31]} Qc7 {[%emt 0:01:40]} 10. Qe2 {[%emt 0:01:12]} O-O {[%emt 0:00:20]} 11. Nb3 {[%emt 0:02:52]} Bd6 {[%emt 0:04:11]} 12. Nbd4 {[%emt 0:05:34]} a6 {[%emt 0:03:13]} 13. Bg5 {[%emt 0:06:11]} Ng4 {[%emt 0:14:01]} 14. h3 {[%emt 0:21:35]} Ne5 {[%emt 0:00:35]} 15. Nxe5 {[%emt 0:00:20]} Bxe5 {[%emt 0:00:15]} 16. Rad1 {[%emt 0:02:00]} h6 {[%emt 0:04:27]} 17. Be3 {[%emt 0:04:05]} Bf6 {[%emt 0:04:20]} 18. Bd3 {[%emt 0:06:19]} Nc6 {[%emt 0:13:19]} 19. Qg4 {[%emt 0:14:37]} Nxd4 {[%emt 0:13:31]} 20. Bxd4 {[%emt 0:00:11]} Bxd4 {[%emt 0:00:51]} 21. Qxd4 {[%emt 0:00:05]} e5 {[%emt 0:00:22]} 22. Qe4 {[%emt 0:04:08]} g6 {[%emt 0:02:31]} 23. Rfe1 {[%emt 0:01:24]} Re8 {[%emt 0:00:29]} 24. Qe3 {[%emt 0:07:46]} Kh7 {[%emt 0:03:22]} 25. Qg3 {[%emt 0:04:56]} f5 {[%emt 0:04:31]} 26. h4 {[%emt 0:00:22]} Qg7 {[%emt 0:01:00]} 27. c3 {[%emt 0:00:47]} f4 {[%emt 0:02:37]} 28. Qf3 {[%emt 0:00:51]} Bf5 {[%emt 0:01:05]} 29. h5 {[%emt 0:02:43]} Re7 {[%emt 0:02:55]} 30. hxg6+ {[%emt 0:01:03]} Qxg6 {[%emt 0:00:45]} 31. Bxf5 {[%emt 0:00:13]} Qxf5 {[%emt 0:00:02]} 32. Qe4 {[%emt 0:00:34]} Qxe4 {[%emt 0:03:39]} 33. Rxe4 {[%emt 0:00:01]} Rg8 {[%emt 0:00:14]} 34. f3 {[%emt 0:01:01]} Rg3 {[%emt 0:01:37]} 35. Rd2 {[%emt 0:02:13]} Kg6 {[%emt 0:02:37]} 36. a4 {[%emt 0:01:13]} Kf5 {[%emt 0:00:50]} 37. a5 {[%emt 0:00:49]} h5 {[%emt 0:00:04]} 38. Kh2 {[%emt 0:00:30]} h4 {[%emt 0:00:09]} 39. Rde2 {[%emt 0:00:33]} h3 {[%emt 0:01:15]} 40. gxh3 {[%emt 0:00:00]} Rxf3 {[%emt 0:00:10]} 41. Kg2 {[%emt 0:11:34]} Rg3+ {[%emt 0:02:23]} 42. Kh2 {[%emt 0:00:34]} Rd3 {[%emt 0:00:38]} 43. Re1 {[%emt 0:09:29]} Rd2+ {[%emt 0:02:42]} 44. R4e2 {[%emt 0:00:24]} Rxe2+ {[%emt 0:01:56]} 45. Rxe2 {[%emt 0:00:07]} e4 {[%emt 0:00:46]} 46. Kg1 {[%emt 0:01:31]} e3 {[%emt 0:01:46]} 47. Kg2 {[%emt 0:01:32]} Ke4 {[%emt 0:00:23]} 48. Re1 {[%emt 0:00:15]} f3+ {[%emt 0:01:07]} 49. Kf1 {[%emt 0:00:13]} f2 {[%emt 0:02:01]} 0-1

[Event "EYCC 2017"]
[Site "Mamaia"]
[Date "2017.09.06"]
[Round "2"]
[White "Papadiamandis, Elliot"]
[Black "Suleymanli, Aydin"]
[Result "0-1"]
[ECO "C06"]
[WhiteElo "1897"]
[BlackElo "2351"]
[Annotator "NA"]
[PlyCount "59"]
[EventDate "2017.??.??"]
[EventType "swiss"]
[EventCountry "ROU"]
[SourceTitle "playchess.com"]
[Source "ChessBase"]
[SourceQuality "1"]
[TimeControl "40/5400+30:1800+30"]

1. e4 {[%emt 0:00:00]} e6 {[%emt 0:00:05]} 2. d4 {[%emt 0:00:00]} d5 {[%emt 0:00:04]} 3. Nd2 {[%emt 0:00:00]} Nf6 {[%emt 0:00:11]} 4. e5 {[%emt 0:00:00]} Nfd7 {[%emt 0:00:03]} 5. Bd3 {[%emt 0:00:03]} c5 {[%emt 0:00:03]} 6. c3 {[%emt 0:00:16]} Nc6 {[%emt 0:00:07]} 7. Ne2 {[%emt 0:00:09]} cxd4 {[%emt 0:00:04]} 8. cxd4 {[%emt 0:00:08]} f6 {[%emt 0:00:06]} 9. exf6 {[%emt 0:00:23]} Nxf6 {[%emt 0:00:05]} 10. Nf3 {[%emt 0:00:06]} Qc7 {[%emt 0:00:05]} 11. O-O {[%emt 0:00:07]} Bd6 {[%emt 0:00:05]} 12. h3 {[%emt 0:00:29]} O-O {[%emt 0:00:15]} 13. Nc3 {[%emt 0:00:22]} a6 {[%emt 0:00:09]} 14. Bd2 {[%emt 0:00:16]} Bd7 {[%emt 0:01:13]} 15. Re1 {[%emt 0:00:22]} Rae8 {[%emt 0:03:06]} 16. Rc1 {[%emt 0:00:32]} Qb8 {[%emt 0:07:02]} 17. a3 {[%emt 0:03:11]} e5 {[%emt 0:12:22]} 18. Nxd5 {[%emt 0:05:51]} Nxd5 {[%emt 0:05:03]} 19. Bc4 {[%emt 0:00:23]} Nxd4 {[%emt 0:17:34]} 20. Bxd5+ {[%emt 0:05:50]} Be6 {[%emt 0:02:39]} 21. Bc3 {[%emt 0:10:49]} Bxd5 {[%emt 0:03:05]} 22. Nxd4 {[%emt 0:00:01]} Bc5 {[%emt 0:06:50]} 23. b4 {[%emt 0:20:32]} Bxd4 {[%emt 0:03:30]} 24. Bxd4 {[%emt 0:00:16]} exd4 {[%emt 0:00:03]} 25. Qxd4 {[%emt 0:00:08]} Bc6 {[%emt 0:00:10]} 26. Qc4+ {[%emt 0:01:10]} Kh8 {[%emt 0:00:03]} 27. Qc5 {[%emt 0:00:16]} Qf4 {[%emt 0:00:36]} 28. Rxe8 {[%emt 0:00:37]} Rxe8 {[%emt 0:00:08]} 29. Rd1 {[%emt 0:00:14]} h6 {[%emt 0:00:21]} 30. Ra1 {[%emt 0:00:40]} 0-1

[Event "EYCC 2017"]
[Site "Mamaia"]
[Date "2017.09.06"]
[Round "2"]
[White "Pham, Khoi"]
[Black "Can, Isik"]
[Result "1-0"]
[ECO "C90"]
[WhiteElo "1895"]
[BlackElo "2239"]
[Annotator "NA"]
[PlyCount "103"]
[EventDate "2017.??.??"]
[EventType "swiss"]
[EventCountry "ROU"]
[SourceTitle "playchess.com"]
[Source "ChessBase"]
[SourceQuality "1"]
[TimeControl "40/5400+30:1800+30"]

1. e4 {[%emt 0:00:00]} e5 {[%emt 0:00:05]} 2. Nf3 {[%emt 0:00:00]} Nc6 {[%emt 0:00:06]} 3. Bb5 {[%emt 0:00:00]} a6 {[%emt 0:00:06]} 4. Ba4 {[%emt 0:00:00]} Nf6 {[%emt 0:00:06]} 5. O-O {[%emt 0:00:06]} Be7 {[%emt 0:00:07]} 6. Re1 {[%emt 0:00:08]} b5 {[%emt 0:00:04]} 7. Bb3 {[%emt 0:00:11]} d6 {[%emt 0:00:06]} 8. c3 {[%emt 0:00:13]} O-O {[%emt 0:00:08]} 9. d3 {[%emt 0:00:23]} Na5 {[%emt 0:00:33]} 10. Bc2 {[%emt 0:00:20]} c5 {[%emt 0:00:21]} 11. Nbd2 {[%emt 0:00:46]} Re8 {[%emt 0:03:59]} 12. Nf1 {[%emt 0:01:50]} Bf8 {[%emt 0:01:13]} 13. Ng3 {[%emt 0:05:00]} g6 {[%emt 0:01:13]} 14. d4 {[%emt 0:06:26]} Qc7 {[%emt 0:03:21]} 15. d5 {[%emt 0:01:45]} c4 {[%emt 0:04:19]} 16. Bg5 {[%emt 0:04:43]} Bg7 {[%emt 0:00:08]} 17. b4 {[%emt 0:00:44]} cxb3 {[%emt 0:01:58]} 18. axb3 {[%emt 0:00:13]} Bd7 {[%emt 0:01:16]} 19. Ra2 {[%emt 0:17:55]} Nb7 {[%emt 0:03:01]} 20. Qa1 {[%emt 0:09:26]} a5 {[%emt 0:14:37]} 21. b4 {[%emt 0:06:47]} h6 {[%emt 0:23:14]} 22. Bd2 {[%emt 0:04:28]} Rec8 {[%emt 0:06:33]} 23. Bd3 {[%emt 0:04:07]} Qd8 {[%emt 0:01:21]} 24. Qd1 {[%emt 0:09:35]} Qe8 {[%emt 0:09:20]} 25. Qe2 {[%emt 0:03:36]} Kh7 {[%emt 0:01:30]} 26. Rc1 {[%emt 0:05:42]} Ng8 {[%emt 0:12:33]} 27. h4 {[%emt 0:06:45]} Ne7 {[%emt 0:01:29]} 28. h5 {[%emt 0:01:14]} Kh8 {[%emt 0:04:11]} 29. hxg6 {[%emt 0:02:06]} fxg6 {[%emt 0:00:12]} 30. Be3 {[%emt 0:01:26]} g5 {[%emt 0:01:54]} 31. Bb6 {[%emt 0:02:24]} a4 {[%emt 0:02:34]} 32. c4 {[%emt 0:01:27]} bxc4 {[%emt 0:00:57]} 33. Rxc4 {[%emt 0:00:31]} Ng6 {[%emt 0:01:21]} 34. Qc2 {[%emt 0:04:13]} Nf4 {[%emt 0:01:44]} 35. Bf1 {[%emt 0:00:37]} Bb5 {[%emt 0:00:47]} 36. Rc7 {[%emt 0:00:57]} Bxf1 {[%emt 0:00:33]} 37. Nxf1 {[%emt 0:00:21]} Rcb8 {[%emt 0:01:01]} 38. Ne3 {[%emt 0:01:06]} Bf6 {[%emt 0:00:40]} 39. Qc6 {[%emt 0:00:39]} Qxc6 {[%emt 0:00:39]} 40. dxc6 {[%emt 0:00:00]} Nd8 {[%emt 0:00:18]} 41. Ba5 {[%emt 0:01:29]} Rb5 {[%emt 0:25:40]} 42. Nf5 {[%emt 0:14:36]} d5 {[%emt 0:01:34]} 43. Nd6 {[%emt 0:01:08]} Rbb8 {[%emt 0:01:31]} 44. Ne8 {[%emt 0:02:35]} Nde6 {[%emt 0:01:59]} 45. Nxf6 {[%emt 0:01:01]} Nxc7 {[%emt 0:00:00]} 46. Bxc7 {[%emt 0:00:00]} Rxb4 {[%emt 0:00:31]} 47. Bxe5 {[%emt 0:00:04]} Rb1+ {[%emt 0:00:36]} 48. Kh2 {[%emt 0:00:07]} dxe4 {[%emt 0:01:00]} 49. Rd2 {[%emt 0:02:18]} Kg7 {[%emt 0:00:53]} 50. Nxe4+ {[%emt 0:00:42]} Kg6 {[%emt 0:00:54]} 51. Rd6+ {[%emt 0:00:51]} Kh7 {[%emt 0:00:26]} 52. c7 {[%emt 0:00:53]} 1-0

[Event "EYCC 2017"]
[Site "Mamaia"]
[Date "2017.09.06"]
[Round "2"]
[White "Koehler, Inken"]
[Black "Shpanko, Nadiia"]
[Result "1/2-1/2"]
[ECO "A34"]
[WhiteElo "1893"]
[BlackElo "2065"]
[Annotator "NA"]
[PlyCount "63"]
[EventDate "2017.??.??"]
[EventType "swiss"]
[EventCountry "ROU"]
[SourceTitle "playchess.com"]
[Source "ChessBase"]
[SourceQuality "1"]
[TimeControl "40/5400+30:1800+30"]

1. c4 {[%emt 0:00:00]} Nf6 {[%emt 0:00:27]} 2. Nf3 {[%emt 0:00:01]} c5 {[%emt 0:00:08]} 3. Nc3 {[%emt 0:00:30]} d5 {[%emt 0:00:52]} 4. cxd5 {[%emt 0:02:28]} Nxd5 {[%emt 0:00:07]} 5. g3 {[%emt 0:02:26]} Nc6 {[%emt 0:01:39]} 6. Bg2 {[%emt 0:01:26]} Nc7 {[%emt 0:01:57]} 7. O-O {[%emt 0:02:00]} g6 {[%emt 0:00:18]} 8. d3 {[%emt 0:03:58]} Bg7 {[%emt 0:00:43]} 9. Bd2 {[%emt 0:02:59]} Ne6 {[%emt 0:03:49]} 10. Qc1 {[%emt 0:05:57]} O-O {[%emt 0:09:41]} 11. Bh6 {[%emt 0:05:07]} Bd7 {[%emt 0:01:58]} 12. Bxg7 {[%emt 0:06:10]} Kxg7 {[%emt 0:01:08]} 13. Ne4 {[%emt 0:02:29]} b6 {[%emt 0:03:00]} 14. Qc3+ {[%emt 0:07:17]} f6 {[%emt 0:00:48]} 15. Rfd1 {[%emt 0:06:08]} Ned4 {[%emt 0:03:16]} 16. Nxd4 {[%emt 0:04:10]} Nxd4 {[%emt 0:01:24]} 17. Qd2 {[%emt 0:00:41]} Rc8 {[%emt 0:06:56]} 18. Nc3 {[%emt 0:03:39]} e5 {[%emt 0:03:13]} 19. Nd5 {[%emt 0:04:33]} Bg4 {[%emt 0:04:47]} 20. Re1 {[%emt 0:01:50]} Be6 {[%emt 0:07:16]} 21. Ne3 {[%emt 0:01:39]} f5 {[%emt 0:01:55]} 22. Red1 {[%emt 0:06:36]} f4 {[%emt 0:12:22]} 23. Nc4 {[%emt 0:01:53]} Qc7 {[%emt 0:02:32]} 24. e3 {[%emt 0:09:01]} fxe3 {[%emt 0:07:55]} 25. fxe3 {[%emt 0:00:27]} b5 {[%emt 0:10:54]} 26. exd4 {[%emt 0:02:39]} bxc4 {[%emt 0:00:05]} 27. dxe5 {[%emt 0:01:32]} Qxe5 {[%emt 0:04:11]} 28. dxc4 {[%emt 0:03:46]} Bxc4 {[%emt 0:01:39]} 29. Qd7+ {[%emt 0:04:01]} Kg8 {[%emt 0:00:49]} 30. Bd5+ {[%emt 0:01:13]} Bxd5 {[%emt 0:00:24]} 31. Qxd5+ {[%emt 0:00:07]} Qxd5 {[%emt 0:00:08]} 32. Rxd5 {[%emt 0:00:04]} 1/2-1/2

[Event "EYCC 2017"]
[Site "Mamaia"]
[Date "2017.09.06"]
[Round "2"]
[White "Sobek, Michal"]
[Black "Antonica, Dragos-Andrei"]
[Result "0-1"]
[ECO "C17"]
[WhiteElo "1891"]
[BlackElo "2188"]
[Annotator "NA"]
[PlyCount "106"]
[EventDate "2017.??.??"]
[EventType "swiss"]
[EventCountry "ROU"]
[SourceTitle "playchess.com"]
[Source "ChessBase"]
[SourceQuality "1"]
[TimeControl "40/5400+30:1800+30"]

1. e4 {[%emt 0:00:00]} e6 {[%emt 0:00:22]} 2. d4 {[%emt 0:00:00]} d5 {[%emt 0:00:05]} 3. Nc3 {[%emt 0:00:00]} Bb4 {[%emt 0:00:40]} 4. e5 {[%emt 0:00:08]} c5 {[%emt 0:01:24]} 5. Qg4 {[%emt 0:00:47]} Ne7 {[%emt 0:05:42]} 6. dxc5 {[%emt 0:00:27]} Bxc3+ {[%emt 0:13:21]} 7. bxc3 {[%emt 0:00:11]} Qc7 {[%emt 0:03:00]} 8. Nf3 {[%emt 0:01:58]} Ng6 {[%emt 0:13:26]} 9. Bd3 {[%emt 0:03:12]} Nd7 {[%emt 0:10:40]} 10. O-O {[%emt 0:04:39]} Nxc5 {[%emt 0:28:57]} 11. Rb1 {[%emt 0:14:52]} O-O {[%emt 0:08:33]} 12. Ba3 {[%emt 0:01:44]} b6 {[%emt 0:00:23]} 13. Ng5 {[%emt 0:03:05]} Qxe5 {[%emt 0:04:47]} 14. Rbe1 {[%emt 0:02:13]} Qf6 {[%emt 0:00:57]} 15. Bxc5 {[%emt 0:01:34]} bxc5 {[%emt 0:00:01]} 16. f4 {[%emt 0:00:50]} c4 {[%emt 0:02:35]} 17. f5 {[%emt 0:22:06]} cxd3 {[%emt 0:02:20]} 18. fxe6 {[%emt 0:00:10]} Qxc3 {[%emt 0:00:06]} 19. exf7+ {[%emt 0:01:01]} Kh8 {[%emt 0:01:38]} 20. Qh5 {[%emt 0:00:31]} Qd4+ {[%emt 0:00:08]} 21. Kh1 {[%emt 0:13:20]} Qh4 {[%emt 0:00:13]} 22. Qxh4 {[%emt 0:02:28]} Nxh4 {[%emt 0:00:02]} 23. Re8 {[%emt 0:01:02]} Ng6 {[%emt 0:00:38]} 24. cxd3 {[%emt 0:01:51]} h6 {[%emt 0:01:31]} 25. Nf3 {[%emt 0:06:37]} Bd7 {[%emt 0:00:58]} 26. Rxa8 {[%emt 0:01:19]} Rxa8 {[%emt 0:00:01]} 27. Ne5 {[%emt 0:01:08]} Nf8 {[%emt 0:00:46]} 28. Re1 {[%emt 0:01:18]} Rd8 {[%emt 0:00:42]} 29. h4 {[%emt 0:00:39]} g6 {[%emt 0:00:26]} 30. g4 {[%emt 0:01:47]} Kg7 {[%emt 0:00:12]} 31. h5 {[%emt 0:00:39]} g5 {[%emt 0:00:32]} 32. d4 {[%emt 0:00:54]} Be6 {[%emt 0:00:40]} 33. Rc1 {[%emt 0:01:55]} Nd7 {[%emt 0:00:38]} 34. Rc7 {[%emt 0:01:27]} Nxe5 {[%emt 0:00:28]} 35. dxe5 {[%emt 0:00:20]} Rd7 {[%emt 0:00:24]} 36. Rc6 {[%emt 0:01:01]} Re7 {[%emt 0:00:18]} 37. Kg2 {[%emt 0:00:41]} Kxf7 {[%emt 0:00:13]} 38. Kf3 {[%emt 0:00:27]} Rd7 {[%emt 0:00:42]} 39. Ke3 {[%emt 0:00:20]} d4+ {[%emt 0:00:52]} 40. Kd3 {[%emt 0:00:00]} Bxg4 {[%emt 0:00:31]} 41. Rxh6 {[%emt 0:00:36]} Bf5+ {[%emt 0:00:50]} 42. Kd2 {[%emt 0:00:11]} Kg7 {[%emt 0:01:30]} 43. Rf6 {[%emt 0:00:22]} Rf7 {[%emt 0:00:39]} 44. Rd6 {[%emt 0:00:58]} d3 {[%emt 0:00:24]} 45. a4 {[%emt 0:01:34]} Re7 {[%emt 0:02:06]} 46. a5 {[%emt 0:03:01]} Rxe5 {[%emt 0:01:54]} 47. a6 {[%emt 0:01:50]} g4 {[%emt 0:00:13]} 48. h6+ {[%emt 0:00:30]} Kh7 {[%emt 0:00:21]} 49. Rc6 {[%emt 0:00:19]} g3 {[%emt 0:00:33]} 50. Rc7+ {[%emt 0:01:02]} Kxh6 {[%emt 0:00:07]} 51. Rxa7 {[%emt 0:00:41]} g2 {[%emt 0:00:11]} 52. Rg7 {[%emt 0:00:16]} Kxg7 {[%emt 0:00:12]} 53. a7 {[%emt 0:00:06]} g1=Q {[%emt 0:00:39]} 0-1

[Event "EYCC 2017"]
[Site "Mamaia"]
[Date "2017.09.06"]
[Round "2"]
[White "Unneland, Mathias"]
[Black "Ponomarev, Grigori"]
[Result "1-0"]
[ECO "C00"]
[WhiteElo "1883"]
[BlackElo "2165"]
[Annotator "NA"]
[PlyCount "88"]
[EventDate "2017.??.??"]
[EventType "swiss"]
[EventCountry "ROU"]
[SourceTitle "playchess.com"]
[Source "ChessBase"]
[SourceQuality "1"]
[TimeControl "40/5400+30:1800+30"]

1. e4 {[%emt 0:00:00]} e6 {[%emt 0:00:23]} 2. Nf3 {[%emt 0:00:00]} d5 {[%emt 0:00:19]} 3. e5 {[%emt 0:00:27]} c5 {[%emt 0:00:28]} 4. b4 {[%emt 0:00:20]} cxb4 {[%emt 0:00:32]} 5. d4 {[%emt 0:00:18]} Nc6 {[%emt 0:02:48]} 6. a3 {[%emt 0:01:56]} bxa3 {[%emt 0:11:19]} 7. c3 {[%emt 0:05:18]} Bd7 {[%emt 0:04:28]} 8. Bd3 {[%emt 0:03:24]} a6 {[%emt 0:04:02]} 9. Ng5 {[%emt 0:06:19]} g6 {[%emt 0:26:49]} 10. Qf3 {[%emt 0:02:57]} f6 {[%emt 0:00:28]} 11. Nxh7 {[%emt 0:03:22]} f5 {[%emt 0:00:37]} 12. Nxf8 {[%emt 0:00:18]} Kxf8 {[%emt 0:00:01]} 13. Bxa3+ {[%emt 0:00:57]} Kg7 {[%emt 0:00:03]} 14. Qg3 {[%emt 0:04:12]} Qh4 {[%emt 0:03:10]} 15. Qxh4 {[%emt 0:05:18]} Rxh4 {[%emt 0:00:02]} 16. Nd2 {[%emt 0:01:32]} Na7 {[%emt 0:03:48]} 17. Nb3 {[%emt 0:03:10]} Bb5 {[%emt 0:00:48]} 18. Kd2 {[%emt 0:05:35]} Bxd3 {[%emt 0:02:22]} 19. Kxd3 {[%emt 0:00:16]} b6 {[%emt 0:00:09]} 20. Nd2 {[%emt 0:02:11]} Nb5 {[%emt 0:05:33]} 21. Nf3 {[%emt 0:00:41]} Rh5 {[%emt 0:00:16]} 22. h3 {[%emt 0:01:26]} Rc8 {[%emt 0:05:57]} 23. Rhc1 {[%emt 0:02:04]} g5 {[%emt 0:08:09]} 24. Bb2 {[%emt 0:04:54]} g4 {[%emt 0:00:34]} 25. Ng1 {[%emt 0:00:32]} a5 {[%emt 0:00:57]} 26. c4 {[%emt 0:00:35]} dxc4+ {[%emt 0:00:10]} 27. Rxc4 {[%emt 0:00:14]} Rxc4 {[%emt 0:00:05]} 28. Kxc4 {[%emt 0:00:13]} Nc7 {[%emt 0:00:11]} 29. Ba3 {[%emt 0:01:48]} Rh8 {[%emt 0:09:12]} 30. f3 {[%emt 0:01:02]} Nh6 {[%emt 0:01:37]} 31. Bd6 {[%emt 0:01:01]} Nd5 {[%emt 0:01:33]} 32. Kb5 {[%emt 0:01:28]} Rc8 {[%emt 0:00:25]} 33. fxg4 {[%emt 0:00:50]} fxg4 {[%emt 0:00:09]} 34. hxg4 {[%emt 0:00:45]} Rc2 {[%emt 0:01:47]} 35. Nf3 {[%emt 0:01:05]} Nf7 {[%emt 0:00:06]} 36. Nh4 {[%emt 0:04:48]} Nd8 {[%emt 0:02:55]} 37. Rf1 {[%emt 0:03:30]} Nc6 {[%emt 0:01:57]} 38. g5 {[%emt 0:02:09]} Nxd4+ {[%emt 0:00:14]} 39. Ka6 {[%emt 0:00:15]} Ne3 {[%emt 0:04:48]} 40. Rf6 {[%emt 0:00:00]} Nxg2 {[%emt 0:00:40]} 41. Bf8+ {[%emt 0:01:46]} Kh7 {[%emt 0:01:27]} 42. g6+ {[%emt 0:05:23]} Kg8 {[%emt 0:00:07]} 43. Bh6 {[%emt 0:00:34]} Rc8 {[%emt 0:00:04]} 44. g7 {[%emt 0:00:49]} Ra8+ 1-0

[Event "EYCC 2017"]
[Site "Mamaia"]
[Date "2017.09.06"]
[Round "2"]
[White "Zeliantsova, Kseniya"]
[Black "Sumarriva Paulin, Laura"]
[Result "1-0"]
[ECO "C11"]
[WhiteElo "1878"]
[BlackElo "1660"]
[Annotator "NA"]
[PlyCount "71"]
[EventDate "2017.??.??"]
[EventType "swiss"]
[EventCountry "ROU"]
[SourceTitle "playchess.com"]
[Source "ChessBase"]
[SourceQuality "1"]
[TimeControl "40/5400+30:1800+30"]

1. e4 {[%emt 0:00:00]} e6 {[%emt 0:00:11]} 2. d4 {[%emt 0:00:00]} d5 {[%emt 0:00:06]} 3. Nc3 {[%emt 0:00:00]} Nf6 {[%emt 0:00:08]} 4. e5 {[%emt 0:00:00]} Nfd7 {[%emt 0:00:07]} 5. f4 {[%emt 0:00:09]} c5 {[%emt 0:00:08]} 6. Nf3 {[%emt 0:00:12]} Nc6 {[%emt 0:00:21]} 7. Be3 {[%emt 0:00:24]} Be7 {[%emt 0:00:15]} 8. Qd2 {[%emt 0:00:47]} O-O {[%emt 0:00:18]} 9. dxc5 {[%emt 0:01:44]} Qa5 {[%emt 0:00:41]} 10. Bd3 {[%emt 0:04:06]} Nxc5 {[%emt 0:01:59]} 11. a3 {[%emt 0:02:51]} Nxd3+ {[%emt 0:01:10]} 12. Qxd3 {[%emt 0:02:20]} Rd8 {[%emt 0:05:39]} 13. Nd4 {[%emt 0:14:23]} f6 {[%emt 0:14:46]} 14. exf6 {[%emt 0:12:00]} Bxf6 {[%emt 0:00:18]} 15. O-O {[%emt 0:02:33]} Qc7 {[%emt 0:15:40]} 16. h3 {[%emt 0:18:10]} a6 {[%emt 0:12:55]} 17. Rad1 {[%emt 0:06:34]} e5 {[%emt 0:11:06]} 18. fxe5 {[%emt 0:00:48]} Nxe5 {[%emt 0:02:12]} 19. Qe2 {[%emt 0:04:56]} Nc4 {[%emt 0:03:09]} 20. Bf4 {[%emt 0:01:58]} Qb6 {[%emt 0:00:57]} 21. Be3 {[%emt 0:13:56]} Qc7 {[%emt 0:18:37]} 22. Bf2 {[%emt 0:03:06]} Nxb2 {[%emt 0:04:05]} 23. Nxd5 {[%emt 0:00:33]} Qd6 {[%emt 0:03:58]} 24. Nxf6+ {[%emt 0:00:18]} Qxf6 {[%emt 0:00:24]} 25. Rb1 {[%emt 0:00:11]} Na4 {[%emt 0:01:00]} 26. Qc4+ {[%emt 0:00:10]} Kh8 {[%emt 0:01:23]} 27. Qxa4 {[%emt 0:00:13]} Qg6 {[%emt 0:00:24]} 28. Qb3 {[%emt 0:00:51]} b5 {[%emt 0:01:05]} 29. Qf3 {[%emt 0:00:14]} Bd7 {[%emt 0:00:36]} 30. Bh4 {[%emt 0:01:17]} Re8 {[%emt 0:00:48]} 31. Rbe1 {[%emt 0:01:15]} h6 {[%emt 0:00:32]} 32. Rxe8+ {[%emt 0:00:50]} Rxe8 {[%emt 0:00:03]} 33. Qf7 {[%emt 0:01:57]} Qd6 {[%emt 0:01:08]} 34. Nf5 {[%emt 0:01:24]} Qc5+ {[%emt 0:00:48]} 35. Kh1 {[%emt 0:00:13]} Qc3 {[%emt 0:00:26]} 36. Qxd7 {[%emt 0:00:14]} 1-0